[Event "*** SCC Grand Prix: Titled Tuesday Blitz"]
[Site "Chess.com"]
[Date "2020.10.13"]
[Round "8"]
[White "alejanchess73"]
[Black "gumimis"]
[Result "0-1"]
[WhiteElo "2362"]
[BlackElo "2252"]
[TimeControl "180+1"]
[EndTime "11:34:42 PDT"]
[Termination "gumimis won by checkmate"]

1. e4 {[%clk 0:03:00.9]} 1... c6 {[%clk 0:02:59.5]} 2. d4 {[%clk 0:02:59.7]}
2... d5 {[%clk 0:03:00.4]} 3. Nc3 {[%clk 0:02:59.5]} 3... dxe4 {[%clk
0:03:00.7]} 4. Nxe4 {[%clk 0:02:59.9]} 4... Bf5 {[%clk 0:03:01.2]} 5. Ng3 {[%clk
0:03:00]} 5... Bg6 {[%clk 0:03:01.9]} 6. f4 {[%clk 0:03:00.2]} 6... e6 {[%clk
0:02:57.5]} 7. Nf3 {[%clk 0:03:00.3]} 7... h6 {[%clk 0:02:47.3]} 8. h4 {[%clk
0:02:59.8]} 8... Nf6 {[%clk 0:02:44.6]} 9. h5 {[%clk 0:02:59.7]} 9... Bh7 {[%clk
0:02:44.6]} 10. Bd3 {[%clk 0:03:00.2]} 10... Bxd3 {[%clk 0:02:44.8]} 11. Qxd3
{[%clk 0:03:01.1]} 11... c5 {[%clk 0:02:33.7]} 12. Bd2 {[%clk 0:02:53]} 12...
Nc6 {[%clk 0:02:29.1]} 13. O-O-O {[%clk 0:02:49.2]} 13... cxd4 {[%clk
0:02:25.3]} 14. Ne5 {[%clk 0:02:44.6]} 14... Bc5 {[%clk 0:02:15]} 15. Qc4 {[%clk
0:02:36.9]} 15... Qd5 {[%clk 0:02:08.7]} 16. Qb5 {[%clk 0:02:31]} 16... O-O
{[%clk 0:02:00.6]} 17. Kb1 {[%clk 0:02:25.9]} 17... Nxe5 {[%clk 0:01:52]} 18.
fxe5 {[%clk 0:02:24.4]} 18... Qxe5 {[%clk 0:01:52.4]} 19. Rhe1 {[%clk
0:02:19.7]} 19... Qxg3 {[%clk 0:01:49.2]} 20. Qxc5 {[%clk 0:02:19.2]} 20... Rfd8
{[%clk 0:01:45.9]} 21. Bc1 {[%clk 0:02:09.2]} 21... Rac8 {[%clk 0:01:34.1]} 22.
Qxa7 {[%clk 0:02:07.7]} 22... Qxg2 {[%clk 0:01:31.4]} 23. Rd2 {[%clk 0:02:07.4]}
23... Qc6 {[%clk 0:01:27.8]} 24. Qa3 {[%clk 0:01:57.4]} 24... Ne4 {[%clk
0:01:26.1]} 25. Rde2 {[%clk 0:01:48.9]} 25... f5 {[%clk 0:01:13.9]} 26. Rg1
{[%clk 0:01:41.1]} 26... Kh7 {[%clk 0:01:02.2]} 27. Qd3 {[%clk 0:01:35.8]} 27...
Qc4 {[%clk 0:00:43.8]} 28. Qf3 {[%clk 0:01:25.8]} 28... d3 {[%clk 0:00:37.2]}
29. Reg2 {[%clk 0:01:18.1]} 29... dxc2+ {[%clk 0:00:34.1]} 30. Ka1 {[%clk
0:01:15.4]} 30... Rc7 {[%clk 0:00:23.2]} 31. Qf4 {[%clk 0:01:00.2]} 31... Ng5
{[%clk 0:00:13.6]} 32. Qe5 {[%clk 0:00:45.2]} 32... Rd1 {[%clk 0:00:08.8]} 33.
a3 {[%clk 0:00:38.3]} 33... Rxg1 {[%clk 0:00:07]} 34. Rxg1 {[%clk 0:00:38.5]}
34... Rd7 {[%clk 0:00:04.8]} 35. Qe3 {[%clk 0:00:20.1]} 35... Rd1 {[%clk
0:00:04.2]} 36. Re1 {[%clk 0:00:19.6]} 36... Rxe1 {[%clk 0:00:04.1]} 37. Qxe1
{[%clk 0:00:19.4]} 37... Qd5 {[%clk 0:00:03.8]} 38. Qe3 {[%clk 0:00:10.1]} 38...
Qd1 {[%clk 0:00:03.4]} 39. Ka2 {[%clk 0:00:10.6]} 39... Ne4 {[%clk 0:00:03.1]}
40. Kb3 {[%clk 0:00:09.4]} 40... Qd5+ {[%clk 0:00:03.3]} 41. Ka4 {[%clk
0:00:08.5]} 41... Qc4+ {[%clk 0:00:03.2]} 42. b4 {[%clk 0:00:07.9]} 42... b5+
{[%clk 0:00:02.3]} 43. Ka5 {[%clk 0:00:07.8]} 43... Qc7+ {[%clk 0:00:02.2]} 44.
Qb6 {[%clk 0:00:06.8]} 44... Qxb6+ {[%clk 0:00:02.4]} 45. Kxb6 {[%clk
0:00:07.6]} 45... e5 {[%clk 0:00:02.9]} 46. Kxb5 {[%clk 0:00:07.3]} 46... f4
{[%clk 0:00:03.8]} 47. a4 {[%clk 0:00:07.8]} 47... f3 {[%clk 0:00:04.3]} 48. a5
{[%clk 0:00:07.8]} 48... f2 {[%clk 0:00:04.9]} 49. Kb6 {[%clk 0:00:07.1]} 49...
f1=Q {[%clk 0:00:05.8]} 50. b5 {[%clk 0:00:07.5]} 50... Nc3 {[%clk 0:00:05.9]}
51. a6 {[%clk 0:00:07.8]} 51... Qxb5+ {[%clk 0:00:06.4]} 52. Ka7 {[%clk
0:00:08.6]} 52... Nd5 {[%clk 0:00:06.5]} 53. Bxh6 {[%clk 0:00:08.3]} 53... Qb6+
{[%clk 0:00:06.5]} 54. Ka8 {[%clk 0:00:08.8]} 54... Nc7# {[%clk 0:00:06.9]} 0-1

[Event "*** SCC Grand Prix: Titled Tuesday Blitz"]
[Site "Chess.com"]
[Date "2020.10.13"]
[Round "8"]
[White "Semen16"]
[Black "Ranindu2003"]
[Result "1-0"]
[WhiteElo "2482"]
[BlackElo "2599"]
[TimeControl "180+1"]
[EndTime "11:34:43 PDT"]
[Termination "Semen16 won by checkmate"]

1. e4 {[%clk 0:03:00.9]} 1... e5 {[%clk 0:02:59]} 2. Nf3 {[%clk 0:03:01.1]} 2...
Nc6 {[%clk 0:02:59.2]} 3. Bc4 {[%clk 0:03:01.2]} 3... Nf6 {[%clk 0:02:58.9]} 4.
d3 {[%clk 0:03:00.6]} 4... h6 {[%clk 0:02:58.8]} 5. Nc3 {[%clk 0:02:58.8]} 5...
d6 {[%clk 0:02:58.8]} 6. a3 {[%clk 0:02:57.4]} 6... g5 {[%clk 0:02:55.2]} 7. Be3
{[%clk 0:02:52.1]} 7... Bg7 {[%clk 0:02:53.5]} 8. h3 {[%clk 0:02:47.6]} 8... Be6
{[%clk 0:02:39.1]} 9. Qd2 {[%clk 0:02:36.5]} 9... d5 {[%clk 0:02:31.9]} 10. exd5
{[%clk 0:02:34.5]} 10... Nxd5 {[%clk 0:02:31.6]} 11. O-O {[%clk 0:02:24.3]}
11... O-O {[%clk 0:02:28.8]} 12. Rfe1 {[%clk 0:02:18.1]} 12... Qd7 {[%clk
0:02:24.7]} 13. Nxd5 {[%clk 0:02:03.4]} 13... Bxd5 {[%clk 0:02:24]} 14. Bxd5
{[%clk 0:02:04.3]} 14... Qxd5 {[%clk 0:02:23.9]} 15. Qe2 {[%clk 0:02:04.8]}
15... f5 {[%clk 0:02:13.3]} 16. Nh2 {[%clk 0:02:04.3]} 16... Kh8 {[%clk
0:02:03.9]} 17. Qf3 {[%clk 0:02:03.6]} 17... Qb5 {[%clk 0:02:01.1]} 18. Rab1
{[%clk 0:01:53]} 18... f4 {[%clk 0:01:53.9]} 19. Bd2 {[%clk 0:01:45.1]} 19...
Nd4 {[%clk 0:01:53.5]} 20. Qd1 {[%clk 0:01:36.1]} 20... Rad8 {[%clk 0:01:52]}
21. Bc3 {[%clk 0:01:31.9]} 21... Rfe8 {[%clk 0:01:29.8]} 22. Nf3 {[%clk
0:01:29.3]} 22... Nf5 {[%clk 0:01:21.9]} 23. Nd2 {[%clk 0:01:20.1]} 23... Nh4
{[%clk 0:01:13.7]} 24. Qh5 {[%clk 0:01:08.8]} 24... Qc6 {[%clk 0:01:06.4]} 25.
Ne4 {[%clk 0:01:08.2]} 25... Kg8 {[%clk 0:00:53.8]} 26. Kh2 {[%clk 0:01:05]}
26... Rf8 {[%clk 0:00:42.3]} 27. Rbd1 {[%clk 0:00:42.9]} 27... Rde8 {[%clk
0:00:38.7]} 28. b3 {[%clk 0:00:42]} 28... f3 {[%clk 0:00:35.4]} 29. g3 {[%clk
0:00:41.8]} 29... Nf5 {[%clk 0:00:34.6]} 30. Rd2 {[%clk 0:00:36.3]} 30... Nd6
{[%clk 0:00:32]} 31. Bb2 {[%clk 0:00:31.9]} 31... Nf5 {[%clk 0:00:27.2]} 32. a4
{[%clk 0:00:31.3]} 32... a6 {[%clk 0:00:27]} 33. Ba3 {[%clk 0:00:30.9]} 33...
Rf7 {[%clk 0:00:27.3]} 34. Bb2 {[%clk 0:00:31.5]} 34... Rd8 {[%clk 0:00:26.4]}
35. Kg1 {[%clk 0:00:25.6]} 35... Bf8 {[%clk 0:00:25.2]} 36. Rdd1 {[%clk
0:00:23.6]} 36... Bb4 {[%clk 0:00:24.8]} 37. c3 {[%clk 0:00:23.1]} 37... Bf8
{[%clk 0:00:25.3]} 38. d4 {[%clk 0:00:23.3]} 38... exd4 {[%clk 0:00:23.5]} 39.
cxd4 {[%clk 0:00:24.2]} 39... Re8 {[%clk 0:00:23.4]} 40. d5 {[%clk 0:00:23.9]}
40... Qc2 {[%clk 0:00:12.8]} 41. Nf6+ {[%clk 0:00:23.8]} 41... Rxf6 {[%clk
0:00:12.4]} 42. Bxf6 {[%clk 0:00:23.9]} 42... Rxe1+ {[%clk 0:00:07.7]} 43. Rxe1
{[%clk 0:00:24.8]} 43... Qd2 {[%clk 0:00:07.5]} 44. Qg6+ {[%clk 0:00:24]} 44...
Ng7 {[%clk 0:00:07.9]} 45. Qe4 {[%clk 0:00:22.8]} 45... h5 {[%clk 0:00:05.7]}
46. Qe5 {[%clk 0:00:20.5]} 46... Bc5 {[%clk 0:00:05.6]} 47. Rf1 {[%clk
0:00:16.2]} 47... Bxf2+ {[%clk 0:00:02.7]} 48. Rxf2 {[%clk 0:00:16.1]} 48...
Qc1+ {[%clk 0:00:03.4]} 49. Rf1 {[%clk 0:00:16.3]} 49... Qc5+ {[%clk 0:00:03.2]}
50. Rf2 {[%clk 0:00:14.2]} 50... Qc1+ {[%clk 0:00:03.2]} 51. Kh2 {[%clk
0:00:14.4]} 51... Qd1 {[%clk 0:00:02.3]} 52. Bxg7 {[%clk 0:00:12.8]} 52... g4
{[%clk 0:00:03]} 53. Bh6 {[%clk 0:00:12.2]} 53... Kf7 {[%clk 0:00:02.8]} 54.
Qg7+ {[%clk 0:00:11.9]} 54... Ke8 {[%clk 0:00:02.5]} 55. Qg6+ {[%clk 0:00:12.4]}
55... Kd7 {[%clk 0:00:03.4]} 56. Qe6+ {[%clk 0:00:11.9]} 56... Kd8 {[%clk
0:00:03.1]} 57. Bg5# {[%clk 0:00:12.6]} 1-0

[Event "*** SCC Grand Prix: Titled Tuesday Blitz"]
[Site "Chess.com"]
[Date "2020.10.13"]
[Round "8"]
[White "vanea_03"]
[Black "Heineccius"]
[Result "1/2-1/2"]
[WhiteElo "2693"]
[BlackElo "2531"]
[TimeControl "180+1"]
[EndTime "11:34:44 PDT"]
[Termination "Game drawn - insufficient material"]

1. c4 {[%clk 0:03:00.9]} 1... c5 {[%clk 0:02:58.5]} 2. g3 {[%clk 0:03:00.1]}
2... Nf6 {[%clk 0:02:58.1]} 3. Bg2 {[%clk 0:03:00.6]} 3... e6 {[%clk 0:02:54.7]}
4. Nf3 {[%clk 0:02:57.5]} 4... Nc6 {[%clk 0:02:47.2]} 5. O-O {[%clk 0:02:54.4]}
5... Qc7 {[%clk 0:02:36.4]} 6. Nc3 {[%clk 0:02:53.7]} 6... a6 {[%clk 0:02:35.7]}
7. e4 {[%clk 0:02:49.2]} 7... Be7 {[%clk 0:02:30.7]} 8. Re1 {[%clk 0:02:43.8]}
8... d6 {[%clk 0:02:28]} 9. d3 {[%clk 0:02:13.4]} 9... O-O {[%clk 0:02:25.1]}
10. a3 {[%clk 0:02:13]} 10... Rb8 {[%clk 0:02:18.5]} 11. h3 {[%clk 0:02:06.6]}
11... b5 {[%clk 0:02:10.4]} 12. b3 {[%clk 0:02:05.8]} 12... Nd4 {[%clk
0:02:02.6]} 13. Be3 {[%clk 0:01:41.1]} 13... e5 {[%clk 0:01:48.7]} 14. cxb5
{[%clk 0:01:13.5]} 14... Nxb5 {[%clk 0:01:43]} 15. Nxb5 {[%clk 0:00:57.1]} 15...
Rxb5 {[%clk 0:01:38.3]} 16. Nd2 {[%clk 0:00:57.4]} 16... Be6 {[%clk 0:01:22.6]}
17. Qc2 {[%clk 0:00:56.5]} 17... Rfb8 {[%clk 0:01:21.7]} 18. b4 {[%clk
0:00:54.3]} 18... d5 {[%clk 0:00:54.4]} 19. Bg5 {[%clk 0:00:32.5]} 19... Qd7
{[%clk 0:00:34.5]} 20. Bxf6 {[%clk 0:00:27.4]} 20... Bxf6 {[%clk 0:00:33.5]} 21.
exd5 {[%clk 0:00:28.1]} 21... Bxd5 {[%clk 0:00:33.2]} 22. Bxd5 {[%clk
0:00:27.6]} 22... Qxd5 {[%clk 0:00:33.5]} 23. Ne4 {[%clk 0:00:23.7]} 23... cxb4
{[%clk 0:00:26.2]} 24. axb4 {[%clk 0:00:24.6]} 24... Rxb4 {[%clk 0:00:21.4]} 25.
Rxa6 {[%clk 0:00:24.6]} 25... Be7 {[%clk 0:00:21.2]} 26. Ra7 {[%clk 0:00:17.4]}
26... Bf8 {[%clk 0:00:20.5]} 27. Qc7 {[%clk 0:00:14.7]} 27... R8b7 {[%clk
0:00:18.7]} 28. Rxb7 {[%clk 0:00:13.9]} 28... Rxb7 {[%clk 0:00:19.6]} 29. Qc4
{[%clk 0:00:13.7]} 29... Rd7 {[%clk 0:00:19.5]} 30. Qxd5 {[%clk 0:00:11.3]}
30... Rxd5 {[%clk 0:00:20.4]} 31. Rd1 {[%clk 0:00:11.7]} 31... h6 {[%clk
0:00:20.2]} 32. g4 {[%clk 0:00:11.9]} 32... f6 {[%clk 0:00:18.2]} 33. Kf1 {[%clk
0:00:10.8]} 33... Kf7 {[%clk 0:00:18.6]} 34. Ke2 {[%clk 0:00:11.3]} 34... Bc5
{[%clk 0:00:18.5]} 35. Ra1 {[%clk 0:00:09.8]} 35... Bd4 {[%clk 0:00:18.7]} 36.
Ra8 {[%clk 0:00:08.3]} 36... Rb5 {[%clk 0:00:17.6]} 37. Rc8 {[%clk 0:00:07.5]}
37... Rb2+ {[%clk 0:00:17.1]} 38. Kf3 {[%clk 0:00:08]} 38... h5 {[%clk
0:00:14.9]} 39. Rc7+ {[%clk 0:00:07.7]} 39... Kg6 {[%clk 0:00:15.4]} 40. gxh5+
{[%clk 0:00:08]} 40... Kh6 {[%clk 0:00:15.9]} 41. Ng3 {[%clk 0:00:06.2]} 41...
Rxf2+ {[%clk 0:00:15.3]} 42. Ke4 {[%clk 0:00:06.6]} 42... Rf4+ {[%clk
0:00:15.8]} 43. Kd5 {[%clk 0:00:06.9]} 43... Rf3 {[%clk 0:00:16.3]} 44. Ne4
{[%clk 0:00:06.1]} 44... Rxh3 {[%clk 0:00:16.5]} 45. Ke6 {[%clk 0:00:04.8]}
45... Rxh5 {[%clk 0:00:16.7]} 46. Nd6 {[%clk 0:00:05.2]} 46... Rh3 {[%clk
0:00:15.2]} 47. Nf5+ {[%clk 0:00:05]} 47... Kg5 {[%clk 0:00:14.7]} 48. Rxg7+
{[%clk 0:00:05.3]} 48... Kf4 {[%clk 0:00:15.2]} 49. Kxf6 {[%clk 0:00:05.3]}
49... Rxd3 {[%clk 0:00:15.2]} 50. Ke6 {[%clk 0:00:05.3]} 50... e4 {[%clk
0:00:14.6]} 51. Rf7 {[%clk 0:00:05.8]} 51... Kg4 {[%clk 0:00:13.5]} 52. Nd6
{[%clk 0:00:03]} 52... e3 {[%clk 0:00:11.6]} 53. Rf1 {[%clk 0:00:03.6]} 53...
Bc3 {[%clk 0:00:10.3]} 54. Ne4 {[%clk 0:00:02.3]} 54... e2 {[%clk 0:00:07.8]}
55. Rg1+ {[%clk 0:00:03.2]} 55... Kf3 {[%clk 0:00:07.9]} 56. Ng5+ {[%clk
0:00:03.3]} 56... Kf2 {[%clk 0:00:07.4]} 57. Rh1 {[%clk 0:00:04]} 57... e1=Q+
{[%clk 0:00:06.8]} 58. Rxe1 {[%clk 0:00:04.7]} 58... Kxe1 {[%clk 0:00:07.4]} 59.
Kf5 {[%clk 0:00:05.3]} 59... Rd2 {[%clk 0:00:08]} 60. Nf3+ {[%clk 0:00:05.1]}
60... Kd1 {[%clk 0:00:07.3]} 61. Nxd2 {[%clk 0:00:05.6]} 1/2-1/2

[Event "*** SCC Grand Prix: Titled Tuesday Blitz"]
[Site "Chess.com"]
[Date "2020.10.13"]
[Round "8"]
[White "icychess54"]
[Black "catzapto"]
[Result "1-0"]
[WhiteElo "2268"]
[BlackElo "2146"]
[TimeControl "180+1"]
[EndTime "11:34:52 PDT"]
[Termination "icychess54 won by checkmate"]

1. c4 {[%clk 0:02:56.4]} 1... Nf6 {[%clk 0:02:59.7]} 2. Nf3 {[%clk 0:02:56.8]}
2... e6 {[%clk 0:03:00.4]} 3. e3 {[%clk 0:02:55.3]} 3... c6 {[%clk 0:03:00.4]}
4. Be2 {[%clk 0:02:55.7]} 4... d5 {[%clk 0:03:00.9]} 5. O-O {[%clk 0:02:56.6]}
5... Be7 {[%clk 0:02:56.5]} 6. Nc3 {[%clk 0:02:57.1]} 6... O-O {[%clk
0:02:57.4]} 7. b3 {[%clk 0:02:57.4]} 7... Nbd7 {[%clk 0:02:55.8]} 8. Bb2 {[%clk
0:02:57.6]} 8... e5 {[%clk 0:02:55.1]} 9. d4 {[%clk 0:02:56.5]} 9... e4 {[%clk
0:02:55.2]} 10. Ne5 {[%clk 0:02:56.8]} 10... Nxe5 {[%clk 0:02:55.3]} 11. dxe5
{[%clk 0:02:56.9]} 11... Nd7 {[%clk 0:02:56.2]} 12. cxd5 {[%clk 0:02:56.8]}
12... cxd5 {[%clk 0:02:51.3]} 13. Qxd5 {[%clk 0:02:54.6]} 13... Qc7 {[%clk
0:02:23.1]} 14. Nxe4 {[%clk 0:02:51.7]} 14... Nb6 {[%clk 0:02:16.8]} 15. Qd2
{[%clk 0:02:43.4]} 15... Bf5 {[%clk 0:02:13.6]} 16. Ng3 {[%clk 0:02:40.6]} 16...
Rad8 {[%clk 0:02:13.6]} 17. Qc1 {[%clk 0:02:37.4]} 17... Qxc1 {[%clk 0:02:12.2]}
18. Raxc1 {[%clk 0:02:36.8]} 18... Bg6 {[%clk 0:02:09.6]} 19. Rfd1 {[%clk
0:02:33.8]} 19... Bg5 {[%clk 0:01:41.7]} 20. f4 {[%clk 0:02:31.4]} 20... Bh4
{[%clk 0:01:39.5]} 21. Rc7 {[%clk 0:02:00]} 21... Nd5 {[%clk 0:01:39.2]} 22.
Rxb7 {[%clk 0:01:54.8]} 22... Nxe3 {[%clk 0:01:39.5]} 23. Rxd8 {[%clk 0:01:30]}
23... Rxd8 {[%clk 0:01:39.5]} 24. Rxa7 {[%clk 0:01:30.5]} 24... h6 {[%clk
0:01:37.2]} 25. Kf2 {[%clk 0:01:18.6]} 25... Nf5 {[%clk 0:01:22.5]} 26. Kf3
{[%clk 0:01:12.5]} 26... Bxg3 {[%clk 0:01:12.7]} 27. hxg3 {[%clk 0:01:12.3]}
27... Rd2 {[%clk 0:01:06.1]} 28. Bc3 {[%clk 0:01:06.3]} 28... Rc2 {[%clk
0:01:05.9]} 29. Ba1 {[%clk 0:00:48.5]} 29... Rc1 {[%clk 0:01:05]} 30. g4 {[%clk
0:00:46.7]} 30... Nh4+ {[%clk 0:00:52.5]} 31. Kg3 {[%clk 0:00:44.3]} 31... Nxg2
{[%clk 0:00:37.5]} 32. Kxg2 {[%clk 0:00:42.2]} 32... Be4+ {[%clk 0:00:37.4]} 33.
Bf3 {[%clk 0:00:36.2]} 33... Bxf3+ {[%clk 0:00:24.7]} 34. Kxf3 {[%clk
0:00:37.1]} 34... Rxa1 {[%clk 0:00:25.3]} 35. a4 {[%clk 0:00:35.6]} 35... Ra3
{[%clk 0:00:20]} 36. Rb7 {[%clk 0:00:34.1]} 36... g6 {[%clk 0:00:19.4]} 37. Ke4
{[%clk 0:00:30.3]} 37... h5 {[%clk 0:00:19.3]} 38. gxh5 {[%clk 0:00:29.8]} 38...
gxh5 {[%clk 0:00:20.2]} 39. Kf5 {[%clk 0:00:30]} 39... h4 {[%clk 0:00:20.3]} 40.
Kg4 {[%clk 0:00:29.9]} 40... f5+ {[%clk 0:00:18.7]} 41. Kxh4 {[%clk 0:00:28.1]}
41... Ra1 {[%clk 0:00:17.6]} 42. Kg5 {[%clk 0:00:28.1]} 42... Rg1+ {[%clk
0:00:17.2]} 43. Kxf5 {[%clk 0:00:28.5]} 43... Rf1 {[%clk 0:00:16.9]} 44. a5
{[%clk 0:00:28.2]} 44... Ra1 {[%clk 0:00:17.1]} 45. b4 {[%clk 0:00:28.5]} 45...
Ra4 {[%clk 0:00:17.2]} 46. Ke6 {[%clk 0:00:28.1]} 46... Ra1 {[%clk 0:00:16.1]}
47. f5 {[%clk 0:00:27.7]} 47... Rd1 {[%clk 0:00:15.4]} 48. a6 {[%clk 0:00:25.5]}
48... Ra1 {[%clk 0:00:14.6]} 49. a7 {[%clk 0:00:25.5]} 49... Ra3 {[%clk
0:00:11.4]} 50. Rb8+ {[%clk 0:00:25.3]} 50... Kg7 {[%clk 0:00:11.9]} 51. a8=Q
{[%clk 0:00:26.2]} 51... Rd3 {[%clk 0:00:11.1]} 52. Qb7+ {[%clk 0:00:23.6]}
52... Kh6 {[%clk 0:00:11]} 53. Rh8+ {[%clk 0:00:18]} 53... Kg5 {[%clk
0:00:11.4]} 54. Qg7+ {[%clk 0:00:18.6]} 54... Kf4 {[%clk 0:00:11.9]} 55. Rh4+
{[%clk 0:00:19.2]} 55... Ke3 {[%clk 0:00:12.3]} 56. Qg3+ {[%clk 0:00:19.1]}
56... Kd2 {[%clk 0:00:13.2]} 57. Rh2+ {[%clk 0:00:18.3]} 57... Kc3 {[%clk
0:00:13.5]} 58. Qxd3+ {[%clk 0:00:19.2]} 58... Kxd3 {[%clk 0:00:13.7]} 59. Rh4
{[%clk 0:00:20.1]} 59... Kc3 {[%clk 0:00:13.8]} 60. b5 {[%clk 0:00:21]} 60...
Kb3 {[%clk 0:00:14.7]} 61. b6 {[%clk 0:00:21.9]} 61... Ka2 {[%clk 0:00:15]} 62.
b7 {[%clk 0:00:22.8]} 62... Ka1 {[%clk 0:00:15.9]} 63. f6 {[%clk 0:00:23.7]}
63... Ka2 {[%clk 0:00:16.8]} 64. Kf5 {[%clk 0:00:24.6]} 64... Ka1 {[%clk
0:00:17.7]} 65. e6 {[%clk 0:00:25.1]} 65... Ka2 {[%clk 0:00:18.6]} 66. e7 {[%clk
0:00:25.9]} 66... Ka1 {[%clk 0:00:19.5]} 67. f7 {[%clk 0:00:26.5]} 67... Ka2
{[%clk 0:00:20.4]} 68. Rh3 {[%clk 0:00:26.8]} 68... Kb2 {[%clk 0:00:21.3]} 69.
Rh2+ {[%clk 0:00:27]} 69... Kc1 {[%clk 0:00:21.4]} 70. Rh3 {[%clk 0:00:27.9]}
70... Kd1 {[%clk 0:00:22.3]} 71. Rh2 {[%clk 0:00:28]} 71... Ke1 {[%clk
0:00:23.2]} 72. b8=Q {[%clk 0:00:27.6]} 72... Kf1 {[%clk 0:00:24.1]} 73. e8=Q
{[%clk 0:00:26.3]} 73... Kg1 {[%clk 0:00:25]} 74. Qg3+ {[%clk 0:00:24]} 74...
Kf1 {[%clk 0:00:25.9]} 75. Qf3+ {[%clk 0:00:20.9]} 75... Kg1 {[%clk 0:00:26]}
76. Qe1+ {[%clk 0:00:18.9]} 76... Kxh2 {[%clk 0:00:25.8]} 77. Qfh1# {[%clk
0:00:12.8]} 1-0

[Event "*** SCC Grand Prix: Titled Tuesday Blitz"]
[Site "Chess.com"]
[Date "2020.10.13"]
[Round "8"]
[White "ASVZ"]
[Black "BursaBBSatranc"]
[Result "1/2-1/2"]
[WhiteElo "2453"]
[BlackElo "2589"]
[TimeControl "180+1"]
[EndTime "11:34:56 PDT"]
[Termination "Game drawn by stalemate"]

1. e4 {[%clk 0:03:00.9]} 1... e5 {[%clk 0:02:58.8]} 2. Nf3 {[%clk 0:03:00.8]}
2... Nf6 {[%clk 0:02:58.5]} 3. Nc3 {[%clk 0:03:01.7]} 3... Nc6 {[%clk 0:02:57]}
4. Bb5 {[%clk 0:03:01.7]} 4... Bb4 {[%clk 0:02:56.7]} 5. O-O {[%clk 0:03:01.8]}
5... O-O {[%clk 0:02:56.4]} 6. d3 {[%clk 0:03:02.4]} 6... d6 {[%clk 0:02:56.5]}
7. Bg5 {[%clk 0:03:02.6]} 7... Bxc3 {[%clk 0:02:56.6]} 8. bxc3 {[%clk
0:03:03.5]} 8... Qe7 {[%clk 0:02:57.2]} 9. Bxc6 {[%clk 0:03:03.7]} 9... bxc6
{[%clk 0:02:56.8]} 10. Rb1 {[%clk 0:03:04.4]} 10... Bg4 {[%clk 0:02:53.5]} 11.
h3 {[%clk 0:03:04.6]} 11... Bh5 {[%clk 0:02:50.9]} 12. g4 {[%clk 0:03:04.3]}
12... Bg6 {[%clk 0:02:50.7]} 13. Rb7 {[%clk 0:03:02]} 13... a5 {[%clk
0:02:39.4]} 14. Kg2 {[%clk 0:02:45.4]} 14... d5 {[%clk 0:02:29.7]} 15. Qe2
{[%clk 0:02:31.8]} 15... Rfe8 {[%clk 0:01:50]} 16. Nh4 {[%clk 0:01:54.5]} 16...
Qd6 {[%clk 0:01:12.5]} 17. Bxf6 {[%clk 0:01:41.6]} 17... gxf6 {[%clk 0:00:54.4]}
18. Nf5 {[%clk 0:01:28.5]} 18... Bxf5 {[%clk 0:00:54.5]} 19. gxf5 {[%clk
0:01:29.4]} 19... Kh8 {[%clk 0:00:54.7]} 20. Qh5 {[%clk 0:01:27]} 20... Rg8+
{[%clk 0:00:52.5]} 21. Kf3 {[%clk 0:01:25.6]} 21... dxe4+ {[%clk 0:00:42.7]} 22.
dxe4 {[%clk 0:01:25.9]} 22... Qd2 {[%clk 0:00:30.4]} 23. Qxf7 {[%clk 0:01:01.8]}
23... Qf4+ {[%clk 0:00:28.1]} 24. Ke2 {[%clk 0:00:59.2]} 24... Qxe4+ {[%clk
0:00:28.3]} 25. Kd2 {[%clk 0:00:57.3]} 25... Qf4+ {[%clk 0:00:20.3]} 26. Ke2
{[%clk 0:00:56.8]} 26... Qe4+ {[%clk 0:00:11.9]} 27. Kd1 {[%clk 0:00:51.5]}
27... Qxf5 {[%clk 0:00:07.6]} 28. Rxc7 {[%clk 0:00:50.7]} 28... Rad8+ {[%clk
0:00:07.3]} 29. Kc1 {[%clk 0:00:50.8]} 29... Rdf8 {[%clk 0:00:05.6]} 30. Qe7
{[%clk 0:00:47.9]} 30... Re8 {[%clk 0:00:05.3]} 31. Qf7 {[%clk 0:00:43.2]} 31...
Rc8 {[%clk 0:00:05.1]} 32. Rxc8 {[%clk 0:00:28.1]} 32... Qf4+ {[%clk 0:00:01.8]}
33. Kb2 {[%clk 0:00:26.1]} 33... Rxc8 {[%clk 0:00:02.7]} 34. Rg1 {[%clk
0:00:24.2]} 34... Qh6 {[%clk 0:00:03.2]} 35. Rd1 {[%clk 0:00:16.7]} 35... Rb8+
{[%clk 0:00:03.2]} 36. Ka3 {[%clk 0:00:16.6]} 36... Qf8+ {[%clk 0:00:02.1]} 37.
Qxf8+ {[%clk 0:00:16.6]} 37... Rxf8 {[%clk 0:00:03]} 38. Rd6 {[%clk 0:00:16.8]}
38... Kg7 {[%clk 0:00:02.3]} 39. Rxc6 {[%clk 0:00:17]} 39... Kg6 {[%clk
0:00:03.2]} 40. Ka4 {[%clk 0:00:16.6]} 40... Rd8 {[%clk 0:00:03.6]} 41. Kxa5
{[%clk 0:00:16.7]} 41... Rd2 {[%clk 0:00:04.3]} 42. Kb4 {[%clk 0:00:16.4]} 42...
Rxc2 {[%clk 0:00:04.8]} 43. a4 {[%clk 0:00:17.3]} 43... Rxf2 {[%clk 0:00:04.6]}
44. a5 {[%clk 0:00:17.6]} 44... Ra2 {[%clk 0:00:05.3]} 45. a6 {[%clk 0:00:17.8]}
45... e4 {[%clk 0:00:05.8]} 46. Re6 {[%clk 0:00:17.8]} 46... Kf5 {[%clk
0:00:06]} 47. Rb6 {[%clk 0:00:16.5]} 47... e3 {[%clk 0:00:05.8]} 48. Rb5+ {[%clk
0:00:16.4]} 48... Kf4 {[%clk 0:00:06.2]} 49. Ra5 {[%clk 0:00:17.3]} 49... Rb2+
{[%clk 0:00:06.3]} 50. Kc5 {[%clk 0:00:17.6]} 50... Rb8 {[%clk 0:00:06.8]} 51.
Ra4+ {[%clk 0:00:17.8]} 51... Kf3 {[%clk 0:00:06.7]} 52. a7 {[%clk 0:00:18.6]}
52... Ra8 {[%clk 0:00:06.9]} 53. Kb6 {[%clk 0:00:18.5]} 53... e2 {[%clk
0:00:07.2]} 54. Ra1 {[%clk 0:00:19.2]} 54... Ke3 {[%clk 0:00:06.7]} 55. c4
{[%clk 0:00:19.3]} 55... f5 {[%clk 0:00:06.8]} 56. c5 {[%clk 0:00:19.7]} 56...
f4 {[%clk 0:00:06.9]} 57. c6 {[%clk 0:00:20.2]} 57... f3 {[%clk 0:00:07.5]} 58.
Kb7 {[%clk 0:00:20.8]} 58... Re8 {[%clk 0:00:06.6]} 59. c7 {[%clk 0:00:21]}
59... f2 {[%clk 0:00:07.2]} 60. c8=Q {[%clk 0:00:21.3]} 60... Rxc8 {[%clk
0:00:07.4]} 61. Kxc8 {[%clk 0:00:22.2]} 61... f1=Q {[%clk 0:00:07.8]} 62. a8=Q
{[%clk 0:00:23.1]} 62... Qf8+ {[%clk 0:00:07.4]} 63. Kb7 {[%clk 0:00:23.5]}
63... Qxa8+ {[%clk 0:00:07.6]} 64. Kxa8 {[%clk 0:00:24]} 64... Kf2 {[%clk
0:00:08.5]} 65. Kb7 {[%clk 0:00:23.4]} 65... e1=Q {[%clk 0:00:09.4]} 66. Rxe1
{[%clk 0:00:23.4]} 66... Kxe1 {[%clk 0:00:10.3]} 67. Kc6 {[%clk 0:00:23.9]}
67... Kf2 {[%clk 0:00:10.7]} 68. h4 {[%clk 0:00:23.2]} 68... h5 {[%clk
0:00:10.8]} 69. Kd5 {[%clk 0:00:23.2]} 69... Kg3 {[%clk 0:00:11.2]} 70. Ke4
{[%clk 0:00:24.1]} 70... Kxh4 {[%clk 0:00:09.3]} 71. Kf3 {[%clk 0:00:25]} 71...
Kg5 {[%clk 0:00:08.8]} 72. Kg2 {[%clk 0:00:25.3]} 72... h4 {[%clk 0:00:09.7]}
73. Kh3 {[%clk 0:00:26.1]} 73... Kf4 {[%clk 0:00:09.6]} 74. Kh2 {[%clk 0:00:27]}
74... Kg4 {[%clk 0:00:09.8]} 75. Kh1 {[%clk 0:00:27.9]} 75... h3 {[%clk
0:00:10.7]} 76. Kg1 {[%clk 0:00:28.8]} 76... Kh4 {[%clk 0:00:11.3]} 77. Kh1
{[%clk 0:00:29.7]} 77... Kg3 {[%clk 0:00:12.2]} 78. Kg1 {[%clk 0:00:30.6]} 78...
h2+ {[%clk 0:00:12.8]} 79. Kh1 {[%clk 0:00:31.5]} 79... Kh3 {[%clk 0:00:11.2]}
1/2-1/2